[Event "EYTCC U18 Girls 2018"]
[Site "Bad Blankeburg"]
[Date "2018.07.16"]
[Round "5"]
[White "Ziegenfuss, Antonia"]
[Black "Hrescak, Ivana"]
[Result "0-1"]
[ECO "E73"]
[WhiteElo "1957"]
[BlackElo "2129"]
[Annotator "NA"]
[PlyCount "130"]
[EventDate "2018.07.12"]
[EventType "swiss"]
[EventCountry "GER"]
[SourceTitle "playchess.com"]
[Source "ChessBase"]
[SourceQuality "1"]
[TimeControl "40/5400+30:1800+30"]

1. d4 {[%emt 0:00:00]} Nf6 {[%emt 0:00:00]} 2. c4 {[%emt 0:00:00]} g6 {[%emt 0:00:00]} 3. Nc3 {[%emt 0:00:00]} Bg7 {[%emt 0:00:00]} 4. e4 {[%emt 0:00:00]} d6 {[%emt 0:00:00]} 5. Be2 {[%emt 0:00:00]} O-O {[%emt 0:00:07]} 6. Be3 {[%emt 0:00:00]} c5 {[%emt 0:01:37]} 7. e5 {[%emt 0:00:11] E73: King's Indian: Averbakh Variation without 6...c5} (7. dxc5 Qa5 8. Bd2 Qxc5 9. Nf3 Bg4 10. Be3 Qa5 11. O-O Nc6 12. a3 Rfc8 13. b4 Qd8 14. Qb3 Nd7 15. Rfd1 Nce5 16. Nxe5 Bxe2 17. Nxe2 Bxe5 18. Rac1 Qc7 19. Nf4 Bxf4 20. Bxf4 {1-0 (44) Can,E (2590)-Amin,B (2700) Dubai 2018}) 7... Ne8 {[%emt 0:00:09]} 8. dxc5 {[%emt 0:00:39]} Bxe5 {[%emt 0:00:15]} 9. Nf3 {[%emt 0:00:28]} Bg7 {[%emt 0:00:42]} 10. O-O {[%emt 0:01:43]} Nc6 {[%emt 0:00:25]} 11. Qc1 {[%emt 0:02:48]} Qa5 $146 {[%emt 0:06:54]} ({Predecessor:} 11... Bf5 12. Rd1 Qc8 13. Nd5 dxc5 14. Bxc5 Qe6 {1-0 (35) Lima,D (2430)-Caldeira,A (2220) Americana 1996}) 12. cxd6 {[%emt 0:14:56]} Nxd6 {[%emt 0:00:12]} 13. Rd1 {[%emt 0:04:19]} Nf5 {[%emt 0:07:51]} 14. Bg5 {[%emt 0:09:37]} Nfd4 {[%emt 0:08:52]} 15. Nxd4 {[%emt 0:07:50]} Nxd4 {[%emt 0:05:24]} 16. Bf1 {[%emt 0:06:37]} Bg4 {[%emt 0:10:17]} 17. Bxe7 {[%emt 0:09:46]} Rfe8 {[%emt 0:21:37]} 18. Re1 {[%emt 0:03:51]} Qf5 {[%emt 0:08:08]} 19. Re4 {[%emt 0:18:36]} Ne6 {[%emt 0:12:47]} 20. f3 {[%emt 0:04:57]} Bxf3 {[%emt 0:01:54]} 21. gxf3 {[%emt 0:00:11]} Rxe7 {[%emt 0:00:28]} 22. Nd5 {[%emt 0:03:22]} Rd7 {[%emt 0:01:03]} 23. Bg2 {[%emt 0:01:16]} b5 {[%emt 0:02:04]} 24. Qd2 {[%emt 0:03:44]} Rad8 {[%emt 0:02:34]} 25. Qb4 {[%emt 0:00:56]} Rxd5 {[%emt 0:05:16]} 26. cxd5 {[%emt 0:00:14]} Qxd5 {[%emt 0:00:07]} 27. Rae1 {[%emt 0:02:20]} Bf8 {[%emt 0:01:01]} 28. Qb3 {[%emt 0:00:54]} Qxb3 {[%emt 0:02:25]} 29. axb3 {[%emt 0:00:04]} Rd3 {[%emt 0:00:06]} 30. b4 {[%emt 0:02:08]} Rb3 {[%emt 0:00:30]} 31. R1e2 {[%emt 0:01:33]} Bxb4 {[%emt 0:00:30]} 32. Rc2 {[%emt 0:00:56]} Kg7 {[%emt 0:01:40]} 33. f4 {[%emt 0:01:28]} Bc5+ {[%emt 0:00:35]} 34. Kf1 {[%emt 0:00:12]} Bd4 {[%emt 0:00:36]} 35. f5 {[%emt 0:00:57]} gxf5 {[%emt 0:00:21]} 36. Ree2 {[%emt 0:00:23]} Nf4 {[%emt 0:00:46]} 37. Red2 {[%emt 0:00:07]} Bb6 {[%emt 0:00:40]} 38. Bd5 {[%emt 0:01:08]} Rb4 {[%emt 0:00:32]} 39. Bg2 {[%emt 0:00:41]} Ne6 {[%emt 0:00:27]} 40. Rd5 {[%emt 0:00:27]} f4 {[%emt 0:00:33]} 41. Rd3 {[%emt 0:10:32]} Nd4 {[%emt 0:08:19]} 42. Rcd2 {[%emt 0:03:42]} Nf5 {[%emt 0:03:19]} 43. Bd5 {[%emt 0:02:21]} a5 $17 {[%emt 0:03:59]} 44. Ke1 {[%emt 0:08:23]} a4 {[%emt 0:05:34]} 45. b3 {[%emt 0:04:16]} a3 {[%emt 0:07:23]} 46. Bc6 {[%emt 0:03:01]} Rd4 {[%emt 0:02:39]} 47. Rg2+ {[%emt 0:01:02]} Kf6 {[%emt 0:00:28]} 48. Bxb5 {[%emt 0:00:18]} Ba5+ {[%emt 0:01:28]} 49. Ke2 {[%emt 0:00:44]} a2 {[%emt 0:00:41]} 50. Rg1 {[%emt 0:00:10]} Re4+ {[%emt 0:00:38]} 51. Kf3 {[%emt 0:00:42]} Ke5 {[%emt 0:00:14]} 52. Ra1 {[%emt 0:00:24]} Nd4+ {[%emt 0:00:43]} 53. Rxd4 {[%emt 0:00:29]} Re3+ {[%emt 0:00:48]} 54. Kf2 {[%emt 0:00:23]} Kxd4 {[%emt 0:00:25]} 55. Rxa2 {[%emt 0:00:09]} Be1+ {[%emt 0:00:26]} 56. Kf1 {[%emt 0:01:00]} f3 {[%emt 0:00:14]} 57. Ra1 {[%emt 0:00:43]} f2 {[%emt 0:00:51]} 58. Ra2 {[%emt 0:00:32]} Rxb3 {[%emt 0:00:18]} 59. Be2 {[%emt 0:00:32]} f5 {[%emt 0:00:52]} 60. Kg2 {[%emt 0:00:23]} Ke4 {[%emt 0:00:36]} 61. Ra4+ {[%emt 0:00:20]} Ke3 {[%emt 0:00:16]} 62. Ra2 {[%emt 0:00:08]} f4 {[%emt 0:00:41]} 63. Rc2 {[%emt 0:01:06]} Bd2 {[%emt 0:00:36]} 64. Bc4 {[%emt 0:00:45]} Rb7 {[%emt 0:00:25]} 65. Rxd2 {[%emt 0:00:35]} Rg7+ {[%emt 0:00:26]} 0-1

[Event "EYTCC U18 Girls 2018"]
[Site "Bad Blankeburg"]
[Date "2018.07.17"]
[Round "6"]
[White "Sieber, Fiona"]
[Black "Rozman, Monika"]
[Result "1-0"]
[ECO "C71"]
[WhiteElo "2283"]
[BlackElo "2125"]
[Annotator "NA"]
[PlyCount "89"]
[EventDate "2018.07.12"]
[EventType "swiss"]
[EventCountry "GER"]
[SourceTitle "playchess.com"]
[Source "ChessBase"]
[SourceQuality "1"]
[TimeControl "40/5400+30:1800+30"]

1. e4 {[%emt 0:00:00]} e5 {[%emt 0:00:00]} 2. Nf3 {[%emt 0:00:00]} Nc6 {[%emt 0:00:00]} 3. Bb5 {[%emt 0:00:00]} a6 {[%emt 0:00:00]} 4. Ba4 {[%emt 0:00:00]} d6 {[%emt 0:00:00]} 5. d4 {[%emt 0:01:34]} b5 {[%emt 0:01:13]} 6. Bb3 {[%emt 0:00:14]} Nxd4 {[%emt 0:00:46]} 7. Nxd4 {[%emt 0:00:12]} exd4 {[%emt 0:00:06]} 8. Bd5 {[%emt 0:04:32]} Rb8 {[%emt 0:00:57]} 9. Qxd4 {[%emt 0:01:42]} Ne7 {[%emt 0:01:03]} 10. Bg5 {[%emt 0:08:26]} f6 {[%emt 0:06:38]} 11. Bf4 {[%emt 0:02:40]} c5 {[%emt 0:08:30]} 12. Qd1 {[%emt 0:07:28]} Nxd5 {[%emt 0:04:13]} 13. Qh5+ {[%emt 0:02:01]} g6 {[%emt 0:01:53]} 14. Qxd5 {[%emt 0:00:04]} Bb7 {[%emt 0:05:07]} 15. Qd3 {[%emt 0:00:59]} Be7 {[%emt 0:03:38]} ({Black should play} 15... g5 $11 16. Bg3 Qe7) 16. Nc3 {[%emt 0:02:03]} Kf7 {[%emt 0:07:41]} 17. O-O-O {[%emt 0:01:55]} c4 {[%emt 0:11:02]} 18. Qd4 $16 {[%emt 0:01:44]} Qa5 {[%emt 0:02:13]} 19. Kb1 {[%emt 0:13:30]} Rhd8 {[%emt 0:13:29]} 20. h4 {[%emt 0:00:46]} Rbc8 {[%emt 0:02:08]} 21. Nd5 {[%emt 0:03:59]} c3 {[%emt 0:08:10]} 22. Nxe7 {[%emt 0:10:52]} Rc4 {[%emt 0:02:30]} 23. Qa7 {[%emt 0:02:14]} Rc7 {[%emt 0:00:46]} 24. Nc6 {[%emt 0:08:02]} Bxc6 {[%emt 0:00:26]} 25. Qd4 {[%emt 0:00:04]} Bb7 {[%emt 0:06:49]} 26. h5 {[%emt 0:06:39]} g5 {[%emt 0:02:56]} 27. Bxd6 {[%emt 0:01:12]} Rc4 {[%emt 0:05:23]} 28. Qa7 {[%emt 0:00:40]} Rd7 {[%emt 0:00:07]} 29. e5 {[%emt 0:08:11]} cxb2 {[%emt 0:01:11]} 30. Rhe1 {[%emt 0:04:57]} fxe5 {[%emt 0:02:16]} 31. Bxe5 {[%emt 0:03:45]} Re7 {[%emt 0:00:04]} 32. Qe3 {[%emt 0:00:27]} Be4 {[%emt 0:01:09]} 33. Qxg5 {[%emt 0:02:30]} Rxe5 {[%emt 0:03:25]} 34. Qxe5 {[%emt 0:01:49]} Bxc2+ {[%emt 0:00:15]} 35. Kxb2 {[%emt 0:00:00]} Qb4+ {[%emt 0:00:49]} 36. Ka1 {[%emt 0:00:02]} Qc3+ {[%emt 0:00:34]} 37. Qxc3 {[%emt 0:00:03]} Rxc3 {[%emt 0:00:06]} 38. Rc1 {[%emt 0:00:23]} Rc4 {[%emt 0:00:30]} 39. Kb2 {[%emt 0:00:33]} Bd3 {[%emt 0:00:12]} 40. Rxc4 {[%emt 0:00:05]} Bxc4 {[%emt 0:00:10]} 41. Rd1 {[%emt 0:31:26]} Ke6 {[%emt 0:30:44]} 42. g4 {[%emt 0:00:49]} Ke5 {[%emt 0:00:00]} 43. g5 {[%emt 0:00:00]} Kf5 {[%emt 0:00:00]} 44. g6 {[%emt 0:00:00]} hxg6 {[%emt 0:00:00]} 45. h6 {[%emt 0:00:00]} 1-0

[Event "EYTCC U18 Girls 2018"]
[Site "Bad Blankeburg"]
[Date "2018.07.17"]
[Round "6"]
[White "Antolak, Julia"]
[Black "Lehaci, Miruna Daria"]
[Result "0-1"]
[ECO "B90"]
[WhiteElo "2282"]
[BlackElo "2015"]
[Annotator "ChessBase"]
[PlyCount "206"]
[EventDate "2018.07.12"]
[EventType "swiss"]
[EventCountry "GER"]
[SourceTitle "playchess.com"]
[Source "ChessBase"]
[SourceQuality "1"]
[TimeControl "40/5400+30:1800+30"]

1. e4 {[%emt 0:00:00]} c5 {[%emt 0:00:00]} 2. Nf3 {[%emt 0:00:00]} d6 {[%emt 0:00:00]} 3. d4 {[%emt 0:00:11]} cxd4 {[%emt 0:00:00]} 4. Nxd4 {[%emt 0:00:06]} Nf6 {[%emt 0:00:00]} 5. Nc3 {[%emt 0:00:07]} a6 {[%emt 0:00:00]} 6. Be3 {[%emt 0:00:14]} e5 {[%emt 0:00:00]} 7. Nb3 {[%emt 0:00:04]} Be6 {[%emt 0:00:00]} 8. f3 {[%emt 0:00:07]} Be7 {[%emt 0:00:01]} 9. Qd2 {[%emt 0:00:17]} O-O {[%emt 0:00:06]} 10. O-O-O {[%emt 0:00:07]} Nbd7 {[%emt 0:00:09]} 11. g4 {[%emt 0:00:18]} b5 {[%emt 0:00:04]} 12. g5 {[%emt 0:00:51]} b4 {[%emt 0:00:04]} 13. gxf6 {[%emt 0:00:18]} bxc3 {[%emt 0:00:06]} 14. Qxc3 {[%emt 0:00:07]} Nxf6 {[%emt 0:00:09]} 15. Na5 {[%emt 0:00:21]} Qe8 {[%emt 0:00:17]} 16. Nc6 {[%emt 0:02:15]} Rc8 {[%emt 0:00:21]} 17. Nxe7+ {[%emt 0:00:06]} Qxe7 {[%emt 0:00:04]} 18. Qa5 {[%emt 0:00:24]} Rc6 {[%emt 0:00:32]} 19. b3 {[%emt 0:22:40]} Rfc8 {[%emt 0:13:39]} 20. Kb1 {[%emt 0:09:09]} Qd7 {[%emt 0:22:02]} 21. c4 {[%emt 0:06:01]} Qb7 {[%emt 0:08:06]} 22. Ka1 {[%emt 0:02:43]} Qe7 {[%emt 0:02:57]} 23. Rg1 {[%emt 0:10:19]} Nh5 {[%emt 0:02:42]} 24. Bd3 {[%emt 0:10:02]} Qf6 {[%emt 0:08:52]} 25. Bg5 {[%emt 0:10:38]} Qxf3 {[%emt 0:01:25]} 26. Qd2 {[%emt 0:02:23]} Nf4 {[%emt 0:05:24]} 27. Bc2 {[%emt 0:03:41]} Nh3 {[%emt 0:10:03]} 28. Rg3 {[%emt 0:09:00]} Qf2 {[%emt 0:02:52]} 29. Bh6 {[%emt 0:02:33]} g6 {[%emt 0:01:27]} 30. Qc3 {[%emt 0:04:31]} Bxc4 {[%emt 0:08:11]} 31. bxc4 {[%emt 0:01:16]} Rxc4 {[%emt 0:00:04]} 32. Qb3 {[%emt 0:01:10]} Rxc2 {[%emt 0:00:20]} 33. Rxh3 {[%emt 0:00:34]} Qe2 {[%emt 0:02:04]} 34. Rhd3 {[%emt 0:01:45]} Qxh2 {[%emt 0:01:27]} 35. Be3 {[%emt 0:00:53]} Qe2 {[%emt 0:02:07]} 36. Rxd6 {[%emt 0:01:19]} Kg7 {[%emt 0:06:08]} 37. Rd7 {[%emt 0:00:14]} R8c4 {[%emt 0:00:34]} 38. R7d2 {[%emt 0:01:21]} Rxd2 {[%emt 0:00:32]} 39. Rxd2 {[%emt 0:00:04]} Qe1+ {[%emt 0:00:43]} 40. Rd1 {[%emt 0:00:34]} Qb4 {[%emt 0:00:44]} 41. Qd3 {[%emt 0:05:20]} Rxe4 {[%emt 0:03:15]} 42. Bc5 {[%emt 0:04:29]} Qc4 {[%emt 0:04:22]} 43. Qd6 {[%emt 0:00:29]} h5 {[%emt 0:02:42]} 44. Ba3 {[%emt 0:05:12]} Re2 {[%emt 0:02:32]} 45. Bb2 {[%emt 0:01:10]} Qb5 {[%emt 0:09:01]} 46. Rb1 {[%emt 0:00:17]} Qa5 {[%emt 0:06:33]} 47. Qd1 {[%emt 0:01:05]} Rd2 {[%emt 0:02:15]} 48. Qe1 {[%emt 0:00:55]} Rd5 {[%emt 0:01:26]} 49. Qe4 {[%emt 0:01:03]} Qc5 {[%emt 0:02:39]} 50. Re1 {[%emt 0:02:09]} f6 {[%emt 0:00:11]} 51. Rc1 {[%emt 0:01:30]} Qd6 {[%emt 0:01:07]} 52. Qa4 {[%emt 0:00:41]} g5 {[%emt 0:01:18]} 53. Ba3 {[%emt 0:00:52]} Qd7 {[%emt 0:02:17]} 54. Qxa6 {[%emt 0:05:30]} Rd1 {[%emt 0:00:04]} 55. Qe2 {[%emt 0:00:25]} Qd4+ {[%emt 0:00:42]} 56. Kb1 {[%emt 0:00:10]} Rxc1+ {[%emt 0:00:44]} 57. Bxc1 {[%emt 0:00:13]} h4 {[%emt 0:00:31]} 58. Qh5 {[%emt 0:00:47]} Qd3+ {[%emt 0:00:35]} 59. Kb2 {[%emt 0:00:14]} Qb5+ {[%emt 0:00:32]} 60. Kc2 {[%emt 0:00:16]} Qc4+ {[%emt 0:00:15]} 61. Kb2 {[%emt 0:00:08]} Qb4+ {[%emt 0:00:13]} 62. Kc2 {[%emt 0:00:08]} Qe4+ {[%emt 0:00:03]} 63. Kb3 {[%emt 0:00:38]} Qd3+ {[%emt 0:00:09]} 64. Kb2 {[%emt 0:00:15]} Qg6 {[%emt 0:01:35]} 65. Qg4 {[%emt 0:00:46]} f5 {[%emt 0:00:04]} 66. Qe2 {[%emt 0:00:15]} h3 {[%emt 0:00:46]} 67. a4 {[%emt 0:00:15]} Qb6+ {[%emt 0:00:27]} 68. Ka2 {[%emt 0:00:45]} Qd4 {[%emt 0:00:44]} 69. Qc2 {[%emt 0:02:28]} Qd5+ {[%emt 0:00:21]} 70. Ka1 {[%emt 0:00:53]} Kg6 {[%emt 0:00:28]} 71. Qc8 {[%emt 0:05:24]} Qd4+ {[%emt 0:00:41]} 72. Kb1 {[%emt 0:00:21]} Qe4+ {[%emt 0:00:03]} 73. Kb2 {[%emt 0:00:24]} Qb4+ {[%emt 0:00:04]} 74. Ka2 {[%emt 0:00:29]} Qxa4+ {[%emt 0:00:03]} 75. Kb2 {[%emt 0:00:04]} Qb5+ {[%emt 0:00:02]} 76. Kc2 {[%emt 0:00:15]} Qa4+ {[%emt 0:00:26]} 77. Kb2 {[%emt 0:00:18]} Qd4+ {[%emt 0:00:22]} 78. Kb1 {[%emt 0:00:17]} Qd3+ {[%emt 0:00:25]} 79. Ka2 {[%emt 0:00:28]} Qd5+ {[%emt 0:00:04]} 80. Kb2 {[%emt 0:00:07]} e4 {[%emt 0:04:19]} 81. Qh8 {[%emt 0:00:39]} Qb5+ {[%emt 0:00:07]} 82. Ka2 {[%emt 0:00:30]} Qa6+ {[%emt 0:00:05]} 83. Kb1 {[%emt 0:00:07]} Qb7+ {[%emt 0:00:32]} 84. Ka2 {[%emt 0:00:15]} Qh7 {[%emt 0:00:32]} 85. Qd8 {[%emt 0:00:19]} Qf7+ {[%emt 0:00:14]} 86. Ka3 {[%emt 0:00:30]} Qa7+ {[%emt 0:00:36]} 87. Kb3 {[%emt 0:00:28]} Qf7+ {[%emt 0:00:11]} 88. Ka3 {[%emt 0:00:08]} f4 {[%emt 0:01:18]} 89. Qh8 {[%emt 0:01:40]} Qe7+ {[%emt 0:00:18]} 90. Kb3 {[%emt 0:00:29]} Qe6+ {[%emt 0:00:05]} 91. Kc2 {[%emt 0:00:17]} e3 {[%emt 0:00:28]} 92. Kd1 {[%emt 0:01:27]} Qb3+ {[%emt 0:01:38]} 93. Ke1 {[%emt 0:00:31]} Qb4+ {[%emt 0:00:07]} 94. Kd1 {[%emt 0:00:47]} Qb3+ {[%emt 0:00:33]} 95. Ke1 {[%emt 0:00:07]} Qe6 {[%emt 0:00:17]} 96. Bb2 {[%emt 0:00:58]} f3 {[%emt 0:00:47]} 97. Qg7+ {[%emt 0:00:50]} Kh5 {[%emt 0:00:12]} 98. Qh8+ {[%emt 0:01:40]} Kg4 {[%emt 0:00:07]} 99. Qd4+ {[%emt 0:00:24]} Kg3 {[%emt 0:00:09]} 100. Bc1 {[%emt 0:00:39]} f2+ {[%emt 0:00:14]} 101. Ke2 {[%emt 0:00:09]} Qg4+ {[%emt 0:01:26]} 102. Qxg4+ {[%emt 0:00:22]} Kxg4 {[%emt 0:00:03]} 103. Kf1 {[%emt 0:00:05]} h2 0-1

[Event "EYTCC U18 Girls 2018"]
[Site "Bad Blankeburg"]
[Date "2018.07.17"]
[Round "6"]
[White "Kovacs, Judit"]
[Black "Blazeka, Mihaela"]
[Result "0-1"]
[ECO "A46"]
[WhiteElo "2143"]
[BlackElo "2054"]
[Annotator "NA"]
[PlyCount "62"]
[EventDate "2018.07.12"]
[EventType "swiss"]
[EventCountry "GER"]
[SourceTitle "playchess.com"]
[Source "ChessBase"]
[SourceQuality "1"]
[TimeControl "40/5400+30:1800+30"]

1. d4 {[%emt 0:00:00]} Nf6 {[%emt 0:00:00]} 2. Nf3 {[%emt 0:00:00]} e6 {[%emt 0:00:00]} 3. e3 {[%emt 0:00:00]} b6 {[%emt 0:00:40]} 4. Bd3 {[%emt 0:00:00]} Bb7 {[%emt 0:00:06]} 5. O-O {[%emt 0:00:00]} Be7 {[%emt 0:01:07]} 6. c4 {[%emt 0:00:38]} c5 {[%emt 0:01:02]} 7. Nc3 {[%emt 0:01:18]} d6 {[%emt 0:00:35]} 8. d5 {[%emt 0:04:50]} exd5 {[%emt 0:10:06]} 9. cxd5 {[%emt 0:00:21]} Nbd7 {[%emt 0:00:48]} 10. e4 {[%emt 0:01:34]} O-O {[%emt 0:01:36]} 11. h3 {[%emt 0:01:22]} a6 {[%emt 0:02:44]} 12. a4 {[%emt 0:00:20]} Re8 {[%emt 0:00:32] E14: Queen's Indian: Classical Variation (4 e3)} (12... Ne8 13. Bf4 Bf6 14. Nd2 Ne5 15. Be2 Ng6 16. Bh2 Be5 17. Nc4 Bxh2+ 18. Kxh2 Rb8 19. f4 Nf6 20. Bd3 {½-½ (70) Neelotpal,D (2475)-Sengupta,D (2589) Thiruvarur 2015}) 13. Bf4 {[%emt 0:01:40]} Nf8 {[%emt 0:02:27]} 14. Re1 {[%emt 0:03:37]} Ng6 {[%emt 0:00:36]} 15. Bh2 {[%emt 0:00:42]} Nd7 {[%emt 0:03:41]} 16. Bf1 {[%emt 0:16:39]} Qc7 {[%emt 0:04:24]} 17. Nd2 {[%emt 0:01:45]} Bf6 {[%emt 0:01:05]} 18. f4 $146 {[%emt 0:05:52]} ({Predecessor:} 18. Nc4 Nde5 19. Ne3 Nd7 20. Nc4 Nde5 21. Ne3 Nd7 {½-½ (21) Werner,D (2358)-Ignacz,M (2238) Budapest 2007}) 18... Re7 {[%emt 0:08:12] [#]} 19. Nf3 $14 {[%emt 0:03:21]} (19. e5 $1 $18 {[%mdl 512]}) 19... c4 {[%emt 0:04:03]} 20. Kh1 {[%emt 0:12:06]} Qc5 {[%emt 0:02:56]} 21. Rc1 {[%emt 0:25:34]} b5 {[%emt 0:04:38]} 22. Qd2 {[%emt 0:08:36]} Rae8 {[%emt 0:05:06]} 23. e5 {[%emt 0:07:42]} dxe5 {[%emt 0:00:39]} 24. f5 {[%emt 0:00:06]} e4 {[%emt 0:01:55]} 25. d6 {[%emt 0:01:09]} exf3 {[%emt 0:07:17]} 26. dxe7 {[%emt 0:00:05]} Qxf5 {[%emt 0:00:21]} 27. Rcd1 {[%emt 0:03:19]} Nh4 {[%emt 0:01:49]} 28. Nd5 {[%emt 0:00:48]} Bg5 {[%emt 0:08:31]} 29. Qd4 {[%emt 0:00:32]} Nf6 {[%emt 0:00:59]} 30. Nxf6+ {[%emt 0:00:28]} Bxf6 {[%emt 0:00:09]} 31. Qd7 {[%emt 0:00:27]} fxg2+ {[%emt 0:00:36]} 0-1

[Event "EYTCC U18 Girls 2018"]
[Site "Bad Blankeburg"]
[Date "2018.07.17"]
[Round "6"]
[White "Hrescak, Ivana"]
[Black "Schneider, Jana"]
[Result "1/2-1/2"]
[ECO "A06"]
[WhiteElo "2129"]
[BlackElo "2234"]
[Annotator "NA"]
[PlyCount "81"]
[EventDate "2018.07.12"]
[EventType "swiss"]
[EventCountry "GER"]
[SourceTitle "playchess.com"]
[Source "ChessBase"]
[SourceQuality "1"]
[TimeControl "40/5400+30:1800+30"]

1. Nf3 {[%emt 0:00:00]} d5 {[%emt 0:00:00]} 2. g3 {[%emt 0:00:00]} Nd7 {[%emt 0:00:05]} 3. Bg2 {[%emt 0:00:13]} e5 {[%emt 0:00:17]} 4. d3 {[%emt 0:00:51]} Bd6 {[%emt 0:00:53]} 5. e4 {[%emt 0:09:44]} c6 {[%emt 0:00:56]} 6. O-O {[%emt 0:01:41]} Ngf6 {[%emt 0:02:12]} 7. Nc3 {[%emt 0:04:38]} O-O {[%emt 0:02:06]} 8. Nd2 {[%emt 0:03:59] A00: Irregular Openings} (8. Nh4 Nb6 9. h3 Re8 10. Qf3 h6 11. Nf5 Bf8 12. g4 Be6 13. Bd2 dxe4 14. Nxe4 Nxe4 15. Qxe4 Bd5 {0-1 (46) Abramovic,B (2420)-Aronian,L (2795) Novi Sad 2016}) 8... Nb6 {[%emt 0:02:14]} 9. Ne2 $146 {[%emt 0:01:33]} ({Predecessor:} 9. a4 a5 10. b3 Bg4 11. f3 Be6 12. Kh1 Nfd7 13. f4 exf4 14. gxf4 Qf6 15. Bb2 Qh6 16. e5 Bc7 17. d4 f6 {0-1 (34) Stohl,I (2560)-Blatny,P (2490) Austria 1996}) 9... Re8 {[%emt 0:06:59]} 10. h3 {[%emt 0:02:54]} Be6 {[%emt 0:03:55]} 11. g4 {[%emt 0:05:05]} dxe4 {[%emt 0:10:48]} 12. dxe4 {[%emt 0:03:22]} Bb4 {[%emt 0:05:54]} 13. c3 {[%emt 0:05:29]} Bf8 {[%emt 0:00:32]} 14. Qc2 {[%emt 0:01:40]} Qc7 {[%emt 0:01:43]} 15. b3 {[%emt 0:05:27]} Nfd7 {[%emt 0:04:17]} 16. Nf3 {[%emt 0:06:05]} a5 {[%emt 0:04:43]} 17. Ng5 {[%emt 0:04:15]} a4 {[%emt 0:01:07]} 18. Rb1 {[%emt 0:04:20]} axb3 {[%emt 0:02:07]} 19. axb3 {[%emt 0:00:08]} Rad8 {[%emt 0:06:08]} 20. Kh1 {[%emt 0:10:46]} Nc5 {[%emt 0:02:41]} 21. f4 {[%emt 0:05:24]} f6 $14 {[%emt 0:03:28]} ({Black should try} 21... Nd3 $11) 22. Nxe6 {[%emt 0:02:50]} Rxe6 {[%emt 0:00:47]} 23. fxe5 {[%emt 0:05:54]} fxe5 {[%emt 0:01:33]} 24. b4 {[%emt 0:01:40]} Nd3 {[%emt 0:01:42]} 25. Bg5 {[%emt 0:02:35]} Be7 {[%emt 0:02:21]} 26. Qa2 {[%emt 0:01:18]} Qd7 {[%emt 0:01:22]} 27. Bxe7 {[%emt 0:03:52]} Qxe7 {[%emt 0:00:08]} 28. Ng3 {[%emt 0:00:05]} Kh8 {[%emt 0:04:09]} 29. Nf5 {[%emt 0:00:45]} Qd7 {[%emt 0:09:52]} 30. Rbd1 {[%emt 0:00:12]} Rf6 {[%emt 0:04:00]} 31. g5 {[%emt 0:02:16]} Rff8 {[%emt 0:00:21]} 32. Kh2 {[%emt 0:01:03]} Qc7 {[%emt 0:04:52]} 33. Rxd3 {[%emt 0:05:16]} Rxd3 {[%emt 0:00:15]} 34. Nh6 {[%emt 0:00:04]} Rdd8 {[%emt 0:03:43]} 35. Rf7 {[%emt 0:00:18]} Ra8 {[%emt 0:02:31]} 36. Qb3 {[%emt 0:01:38]} Rxf7 {[%emt 0:01:18]} 37. Nxf7+ {[%emt 0:00:05]} Kg8 {[%emt 0:00:05]} 38. Nh6+ {[%emt 0:00:51]} Kh8 {[%emt 0:00:33]} 39. Nf7+ {[%emt 0:00:03]} Kg8 {[%emt 0:00:05]} 40. Nh6+ {[%emt 0:01:00]} Kh8 {[%emt 0:00:16]} 41. Nf7+ {[%emt 0:30:31]} 1/2-1/2

[Event "EYTCC U18 Girls 2018"]
[Site "Bad Blankeburg"]
[Date "2018.07.17"]
[Round "6"]
[White "Cvitan, Ena"]
[Black "Egyed, Judit"]
[Result "1/2-1/2"]
[ECO "E90"]
[WhiteElo "2125"]
[BlackElo "2171"]
[Annotator "NA"]
[PlyCount "61"]
[EventDate "2018.07.12"]
[EventType "swiss"]
[EventCountry "GER"]
[SourceTitle "playchess.com"]
[Source "ChessBase"]
[SourceQuality "1"]
[TimeControl "40/5400+30:1800+30"]

1. d4 {[%emt 0:00:00]} Nf6 {[%emt 0:00:00]} 2. c4 {[%emt 0:00:00]} g6 {[%emt 0:00:00]} 3. Nc3 {[%emt 0:00:00]} Bg7 {[%emt 0:00:00]} 4. e4 {[%emt 0:00:00]} d6 {[%emt 0:00:00]} 5. Nf3 {[%emt 0:00:04]} O-O {[%emt 0:00:11]} 6. h3 {[%emt 0:00:08]} e5 {[%emt 0:02:45]} 7. d5 {[%emt 0:00:36]} Nbd7 {[%emt 0:02:21]} 8. Be3 {[%emt 0:00:16]} a5 {[%emt 0:04:08]} 9. g4 {[%emt 0:01:27]} Nc5 {[%emt 0:03:45]} 10. Nd2 {[%emt 0:00:10]} c6 {[%emt 0:05:31]} 11. Be2 {[%emt 0:00:29]} cxd5 {[%emt 0:04:14]} 12. cxd5 {[%emt 0:00:36]} Ne8 {[%emt 0:15:33]} 13. h4 {[%emt 0:03:34]} h6 {[%emt 0:05:59]} 14. h5 {[%emt 0:09:52]} g5 $16 {[%emt 0:00:25]} 15. Bxc5 {[%emt 0:02:23]} dxc5 {[%emt 0:00:10]} 16. a4 {[%emt 0:00:11]} Nd6 {[%emt 0:05:18]} 17. Nb5 {[%emt 0:22:40]} b6 {[%emt 0:21:09]} 18. Rh3 {[%emt 0:06:44]} Rb8 {[%emt 0:06:10]} 19. Rb3 {[%emt 0:09:15]} Nxb5 {[%emt 0:05:20]} 20. Bxb5 {[%emt 0:00:58]} Qf6 {[%emt 0:05:08]} 21. Qe2 {[%emt 0:12:21]} Rd8 {[%emt 0:03:30]} 22. Nc4 {[%emt 0:10:29]} Bf8 {[%emt 0:04:23]} 23. f3 {[%emt 0:04:40]} Bd6 {[%emt 0:00:36]} 24. O-O-O {[%emt 0:01:07]} Qe7 {[%emt 0:01:00]} 25. Kb1 {[%emt 0:00:29]} Kg7 {[%emt 0:00:37]} 26. Qc2 {[%emt 0:02:01]} f6 {[%emt 0:01:05]} 27. Bc6 {[%emt 0:01:40]} Qc7 {[%emt 0:00:27]} 28. Bb5 {[%emt 0:00:32]} Kg8 {[%emt 0:00:33]} 29. Qe2 {[%emt 0:00:53]} Kg7 {[%emt 0:00:17]} 30. Qc2 {[%emt 0:00:21]} Kg8 {[%emt 0:00:05]} 31. Qe2 {[%emt 0:00:05]} 1/2-1/2